bitfinex-derivatives/quotes_ETHF0:USTF0_20210702
["timestamp","ask_amount","ask_price","bid_price","bid_amount"]
[1625198296023,5.0,2037.0,2035.7,1.44446286]
[1625198296224,5.70107,2037.1,2035.7,1.44446286]
[1625198296318,10.70107,2037.1,2035.7,1.44446286]
[1625198296419,1.45227466,2036.9,2035.7,1.44446286]
[1625198296523,1.45227466,2036.9,2035.2,16.65654841]
[1625198296524,2.81070498,2036.9,2035.2,16.65654841]
[1625198296628,2.81070498,2036.9,2035.6,55.2565]
[1625198296718,1.35843032,2036.9,2035.6,55.2565]
[1625198296828,1.45227433,2037.0,2035.6,55.2565]
[1625198297122,1.45228681,2036.8,2035.6,55.2565]
[1625198297224,2.20527,2036.2,2036.1,2.20527]
[1625198299278,4.41054,2036.2,2036.1,2.20527]
[1625198306047,4.41054,2036.2,2036.1,3.18517]
[1625198306149,1.36044446,2037.1,2036.1,3.18517]
[1625198306460,1.45192447,2037.0,2036.1,3.18517]
[1625198306913,1.36064403,2037.3,2036.1,3.18517]
[1625198306914,1.4519385,2037.2,2036.1,3.18517]
[1625198307313,2.20527,2036.7,2036.5,2.20527]
[1625198307417,2.20527,2036.7,2036.5,5.02557]
[1625198309371,2.20527,2036.7,2036.5,7.23084]
[1625198316859,2.20527,2037.1,2036.5,7.23084]
[1625198317360,2.20527,2037.1,2037.0,4.41054]
[1625198317459,2.20527,2037.1,2037.0,7.94704]
[1625198317659,3.6568272,2037.1,2037.0,7.94704]
[1625198318924,2.20527,2037.1,2037.0,7.94704]
[1625198319228,2.20527,2037.1,2037.0,3.5365]
[1625198319325,2.20527,2037.1,2036.7,0.9904]
[1625198319426,2.20527,2037.1,2036.8,2.20527]
[1625198321430,4.41054,2037.1,2036.8,2.20527]
[1625198326291,2.20527,2037.1,2036.8,2.20527]
[1625198326498,1.36493155,2037.7,2036.8,2.20527]
[1625198326803,1.45142797,2037.6,2036.8,2.20527]
[1625198327450,2.20527,2037.5,2037.4,2.20527]
[1625198327548,2.20527,2037.5,2037.4,5.08247]
[1625198327799,1.45141635,2037.7,2037.4,5.08247]
[1625198327898,6.13156261,2037.8,2037.4,5.08247]
[1625198328215,1.36556261,2037.8,2037.4,5.08247]
[1625198328362,1.36633188,2038.1,2037.4,5.08247]
[1625198328664,1.36633188,2038.1,2037.4,6.06497]
[1625198329275,1.36792036,2038.2,2037.4,6.06497]
[1625198329473,3.57319036,2038.2,2038.1,2.20527]
[1625198329625,3.57319036,2038.2,2038.1,4.71967]
[1625198329725,2.20527,2038.2,2038.1,4.71967]
[1625198331529,4.41054,2038.2,2038.1,4.71967]
[1625198332079,4.41054,2038.2,2036.9,1.44472809]
[1625198332179,11.97084,2038.2,2036.9,1.44472809]
[1625198332330,12.97084,2038.2,2036.9,1.44472809]
[1625198332433,1.45128123,2038.1,2036.9,1.44472809]
[1625198332730,46.3975,2037.2,2036.5,1.44493161]
[1625198332830,49.0001,2037.2,2036.5,1.44493161]
[1625198332930,49.0001,2037.2,2036.4,1.44503351]
[1625198333329,2.6026,2037.2,2036.4,1.44503351]
[1625198333431,4.80787,2037.2,2037.0,2.20527]
[1625198333533,2.20527,2037.2,2037.0,4.51247]
[1625198333681,1.36395253,2037.9,2037.0,4.51247]
[1625198333879,1.36395253,2037.9,2037.0,50.28847]
[1625198334081,2.72790506,2038.1,2037.0,50.28847]
[1625198334082,1.36473004,2038.1,2037.0,50.28847]
[1625198334731,1.45134468,2038.0,2037.0,4.51247]
[1625198335132,2.81429115,2038.0,2037.0,4.51247]
[1625198335284,49.39959115,2038.0,2037.0,4.51247]
[1625198335486,2.20527,2037.5,2037.4,2.20527]
[1625198336687,1.36294647,2038.0,2037.4,2.20527]
[1625198336791,1.35804023,2038.1,2037.4,4.70057]
[1625198337046,1.35813204,2038.3,2037.4,4.70057]
[1625198337544,2.20527,2038.1,2038.0,2.20527]
[1625198337644,2.20527,2038.1,2038.0,5.38377]
[1625198343841,16.4432,2038.7,2038.0,5.38377]
[1625198343940,15.4432,2038.7,2038.0,5.38377]
[1625198344141,1.36053403,2038.9,2038.0,5.38377]
[1625198344492,1.90474764,2039.0,2038.0,5.38377]
[1625198344493,1.45086131,2038.8,2038.0,5.38377]
[1625198344840,1.45094579,2038.9,2038.0,5.38377]
[1625198345043,1.35929653,2038.8,2038.0,5.38377]
[1625198345343,2.81012787,2038.9,2038.0,5.38377]
[1625198345544,2.20527,2038.5,2038.3,2.20527]
[1625198347499,2.20527,2038.5,2038.4,2.20527]
[1625198349752,2.20527,2038.5,2038.4,5.30317]
[1625198356582,5.52757,2038.5,2038.4,2.20527]
[1625198357787,5.52757,2038.5,2036.9,1.44012266]
[1625198357938,6.52757,2038.5,2036.7,3.40952717]
[1625198358238,6.52757,2038.5,2036.7,2.40952717]
[1625198358401,6.52757,2038.5,2036.7,0.9695]
[1625198359597,2.20527,2037.8,2037.7,2.20527]
[1625198361651,4.41054,2037.8,2037.7,2.20527]
[1625198362149,2.20527,2037.8,2037.7,2.20527]
[1625198363265,2.20527,2037.8,2037.7,53.80127]
[1625198363815,2.20527,2037.8,2037.7,2.20527]
[1625198364972,1.36031166,2038.8,2037.7,2.20527]
[1625198365072,1.36031166,2038.8,2037.7,5.43317]
[1625198365476,15.796,2038.9,2037.7,5.43317]
[1625198365574,14.796,2038.9,2037.7,5.43317]
[1625198365675,2.20527,2038.4,2038.3,2.20527]
[1625198365777,2.20527,2038.4,2038.3,5.77497]
[1625198365926,14.796,2038.9,2038.3,5.77497]
[1625198367683,2.20527,2038.4,2038.3,5.77497]
[1625198367880,14.796,2038.9,2038.3,5.77497]
[1625198368583,14.796,2038.9,2038.6,60.9325]
[1625198369036,1.359947,2039.4,2038.6,60.9325]
[1625198369135,1.359947,2039.4,2038.3,5.77497]
[1625198369685,2.20527,2039.1,2039.0,2.20527]
[1625198369835,1.9039258,2039.5,2039.0,2.20527]
[1625198369836,1.35897666,2039.5,2039.0,4.83517]
[1625198369934,1.45134944,2039.1,2039.0,4.83517]
[1625198370235,1.35897666,2039.5,2039.0,4.83517]
[1625198370338,1.35954828,2039.8,2039.0,65.80907]
[1625198371236,1.9033676,2039.9,2039.0,65.80907]
[1625198371237,1.35941708,2039.9,2039.0,65.80907]
[1625198371336,1.35941708,2039.9,2039.0,4.83517]
[1625198371688,2.20527,2039.6,2039.5,2.20527]
[1625198373637,4.41054,2039.6,2039.5,2.20527]
[1625198375010,15.977,2040.3,2039.5,2.20527]
[1625198375011,17.33556727,2040.3,2039.5,2.20527]
[1625198375106,17.33556727,2040.3,2039.5,5.35267]
[1625198375365,17.33556727,2040.3,2039.9,43.9109]
[1625198375706,2.20527,2040.2,2040.1,2.20527]
[1625198376358,2.20527,2040.2,2040.1,1.04528202]
[1625198377658,4.41054,2040.2,2040.1,1.04528202]
[1625198385480,1.35630781,2040.7,2040.1,1.04528202]
[1625198385780,2.20527,2040.5,2040.4,2.20527]
[1625198386292,3.17307,2040.5,2040.4,2.20527]
[1625198386490,2.20527,2040.5,2040.4,2.20527]
[1625198387697,4.41054,2040.5,2040.4,2.20527]
[1625198387797,4.41054,2040.5,2040.1,1.04528202]
[1625198389708,2.20527,2040.2,2040.1,1.04528202]
[1625198395567,2.20527,2040.5,2040.1,1.04528202]
[1625198395667,2.20527,2040.5,2040.1,3.42068202]
[1625198395767,2.20527,2040.5,2040.4,2.20527]
[1625198397518,2.20527,2040.5,2040.1,3.42068202]
[1625198397868,2.20527,2040.2,2040.1,3.42068202]
[1625198397969,2.20527,2040.5,2040.1,3.42068202]
[1625198399696,2.20527,2040.5,2039.9,2.20527]
[1625198399801,2.20527,2040.2,2039.6,2.20527]
[1625198399999,2.20527,2040.2,2038.8,1.0]
[1625198400151,3.20527,2040.2,2037.8,1.43402829]
[1625198400451,3.20527,2040.2,2037.5,1.43425741]
[1625198400651,8.20527,2040.2,2037.5,1.43425741]
[1625198400752,8.20527,2040.2,2037.8,17.82]
[1625198400851,8.20527,2040.2,2037.9,1.0]
[1625198401053,8.20527,2040.2,2037.5,1.38425741]
[1625198401154,20.12527,2040.2,2037.5,1.38425741]
[1625198401258,20.12527,2040.2,2036.6,2.00867973]
[1625198401259,22.01559061,2040.2,2036.6,2.00867973]
[1625198401507,1.0,2039.8,2036.5,15.6557]
[1625198401603,3.9708,2039.8,2036.5,15.6557]
[1625198401705,1.0,2039.6,2036.4,2.00888121]
[1625198401806,2.20527,2037.2,2037.1,2.20527]
[1625198401905,5.19137,2037.2,2037.1,2.20527]
[1625198402708,5.19137,2037.2,2035.4,4.766]
[1625198402806,6.19137,2037.2,2035.4,4.766]
[1625198403106,6.19137,2037.2,2035.3,16.7814131]
[1625198403357,6.19137,2037.2,2035.2,2.01020474]
[1625198403607,6.19137,2037.2,2035.0,2.01051449]
[1625198403859,2.20527,2036.6,2036.5,2.20527]
[1625198404511,2.20527,2036.6,2036.3,2.20527]
[1625198404816,2.20527,2036.6,2035.5,1.15]
[1625198405563,2.20527,2036.6,2035.5,2.1454]
[1625198405868,2.20527,2036.6,2036.3,2.20527]
[1625198406883,2.20527,2036.6,2035.0,1.0]
[1625198406971,10.40717,2036.6,2034.9,2.01023144]
[1625198407077,11.40717,2036.6,2034.9,2.01023144]
[1625198407224,11.40717,2036.6,2034.5,2.01051191]
[1625198407631,11.40717,2036.6,2034.3,2.00988893]
[1625198407875,2.20527,2035.3,2035.1,2.20527]
[1625198409897,2.20527,2035.2,2035.1,2.20527]
[1625198410098,2.20527,2035.3,2035.1,2.20527]
[1625198410198,1.0,2036.5,2035.1,2.20527]
[1625198410349,1.0,2037.7,2035.1,4.80677]
[1625198410451,1.0,2037.5,2035.1,4.80677]
[1625198411901,2.20527,2035.2,2035.1,4.80677]
[1625198412004,2.20527,2035.4,2035.1,4.80677]
[1625198412104,15.3301,2037.4,2035.1,4.80677]
[1625198412254,1.0,2037.3,2035.1,4.80677]
[1625198413757,1.0,2037.3,2035.6,1.15]
[1625198413858,2.20527,2037.0,2036.9,2.20527]
[1625198413958,2.20527,2037.0,2036.9,5.66057]
[1625198414058,4.766,2037.9,2036.9,5.66057]
[1625198415111,1.0,2038.5,2036.9,5.66057]
[1625198415211,14.5348,2038.6,2036.9,5.66057]
[1625198415914,2.20527,2037.9,2037.8,2.20527]
[1625198416013,2.20527,2037.9,2037.8,4.96557]
[1625198416317,1.0,2039.3,2037.8,4.96557]
[1625198416414,4.766,2039.5,2037.8,4.96557]
[1625198417917,2.20527,2039.2,2039.1,2.20527]
[1625198418018,2.20527,2039.2,2039.1,5.25357]
[1625198418370,1.89751373,2040.1,2039.1,5.25357]
[1625198418469,1.89802493,2040.2,2039.1,5.25357]
[1625198418773,9.22920069,2041.1,2039.1,5.25357]
[1625198418774,2.45054021,2041.1,2039.1,5.25357]
[1625198418868,2.13054021,2041.1,2039.6,1.15]
[1625198419020,15.41810563,2041.3,2039.7,5.0]
[1625198419119,1.90290563,2041.3,2039.7,5.0]
[1625198419221,1.90290563,2041.3,2039.6,4.4195]
[1625198419375,1.90290563,2041.3,2039.6,3.2695]
[1625198419470,3.9042335,2041.7,2039.6,3.2695]
[1625198419670,3.9042335,2041.7,2040.2,1.15]
[1625198419772,3.9042335,2041.7,2040.2,3.4674]
[1625198419871,3.9042335,2041.7,2041.6,4.41054]
[1625198419974,2.0,2041.7,2041.6,7.07104]
[1625198420171,2.0,2041.7,2041.6,4.86577]
[1625198420423,2.0,2041.7,2040.2,2.15]
[1625198420521,2.0,2041.7,2040.2,1.15]
[1625198421880,2.20527,2041.3,2041.2,2.20527]
[1625198421974,2.0,2041.7,2041.2,2.20527]
[1625198423977,4.41054,2041.3,2041.2,2.20527]
[1625198425298,4.41054,2041.3,2039.3,1.0]
[1625198425400,4.41054,2041.3,2038.0,0.9959]
[1625198425596,4.41054,2041.3,2037.9,1.0]
[1625198425696,5.41054,2041.3,2037.9,1.0]
[1625198425899,3.20527,2041.3,2040.9,2.20527]
[1625198426002,2.20527,2041.3,2040.9,5.25707]
[1625198427900,2.20527,2041.0,2040.9,5.25707]
[1625198429208,2.20527,2041.0,2039.1,0.9784]
[1625198429308,2.20527,2041.0,2038.5,0.9698]
[1625198429411,3.20527,2041.0,2038.1,6.0]
[1625198429523,3.20527,2041.0,2038.1,5.0]
[1625198429710,1.0,2041.0,2038.1,5.0]
[1625198429813,1.0,2041.0,2039.6,1.15]
[1625198429910,2.20527,2041.3,2040.9,4.41054]
[1625198430061,2.20527,2041.3,2040.9,7.87134]
[1625198430674,2.0,2041.7,2040.9,7.87134]
[1625198431970,2.20527,2041.5,2041.4,2.20527]
[1625198432721,2.20527,2041.5,2040.9,2.20527]
[1625198433923,2.20527,2041.2,2040.9,2.20527]
[1625198435178,2.20527,2041.2,2039.6,4.6252]
[1625198435179,5.62177,2041.2,2039.6,1.15]
[1625198436026,2.20527,2040.6,2040.5,2.20527]
[1625198436778,2.0,2041.7,2040.5,2.20527]
[1625198437980,2.20527,2041.0,2040.9,2.20527]
[1625198438330,2.20527,2041.0,2040.9,1.0458711]
[1625198439237,2.20527,2041.0,2040.5,2.20527]
[1625198440037,2.20527,2040.6,2040.5,2.20527]
[1625198440352,2.20527,2040.6,2040.3,2.20527]
[1625198440452,2.20527,2040.6,2037.7,16.1143]
[1625198440453,4.93717,2040.6,2037.7,16.1143]
[1625198440954,4.93717,2040.6,2037.7,21.1143]
[1625198441155,4.93717,2040.6,2038.2,1.15]
[1625198441455,4.93717,2040.6,2038.3,17.65]
[1625198441561,2.20527,2040.6,2038.3,17.65]
[1625198441656,2.20527,2040.6,2038.3,20.6554]
[1625198442006,2.20527,2040.6,2040.3,2.20527]
[1625198442109,2.20527,2040.6,2040.3,4.68327]
[1625198444016,2.20527,2040.6,2040.4,2.20527]
[1625198444716,2.20527,2040.6,2039.7,3.4091]
[1625198446067,2.20527,2040.6,2040.1,2.20527]
[1625198446868,16.6224,2041.6,2040.1,2.20527]
[1625198447018,15.6224,2041.6,2040.1,2.20527]
[1625198448071,2.20527,2041.0,2040.9,2.20527]
[1625198448170,2.20527,2041.0,2040.9,5.29967]
[1625198449622,2.20527,2041.0,2040.9,3.0944]
[1625198449723,2.20527,2041.0,2040.7,2.20527]
[1625198450076,2.20527,2040.8,2040.7,2.20527]
[1625198450830,2.20527,2040.8,2040.4,2.20527]
[1625198452081,2.20527,2040.5,2040.4,4.41054]
[1625198452432,2.20527,2040.8,2040.4,4.41054]
[1625198452538,2.20527,2040.8,2040.4,7.73734]
[1625198452982,15.6224,2041.6,2040.4,7.73734]
[1625198454135,2.20527,2041.0,2040.9,2.20527]
[1625198454482,2.20527,2041.0,2040.4,2.20527]
[1625198456139,2.20527,2040.5,2040.4,2.20527]
[1625198457051,2.20527,2041.0,2040.4,2.20527]
[1625198457149,2.20527,2041.0,2040.4,4.88577]
[1625198458142,2.20527,2041.0,2040.9,2.20527]
[1625198458255,2.20527,2041.0,2040.9,5.97237]
[1625198460075,2.20527,2041.0,2040.9,2.20527]
[1625198461031,2.20527,2041.0,2040.4,2.20527]
[1625198462179,2.20527,2041.0,2040.9,2.20527]
[1625198462328,2.20527,2041.0,2040.9,4.85657]
[1625198462630,2.20527,2041.2,2040.9,4.85657]
[1625198463583,2.20527,2041.2,2040.9,2.6513]
[1625198463684,2.20527,2041.2,2040.4,2.20527]
[1625198463837,4.57197,2041.2,2040.4,2.20527]
[1625198464083,4.41054,2040.5,2040.4,2.20527]
[1625198473098,4.41054,2040.5,2040.1,2.20527]
[1625198474206,2.20527,2040.2,2040.1,2.20527]
[1625198477219,2.20527,2040.2,2038.9,15.3666]
[1625198477470,2.20527,2040.2,2038.8,1.15]
[1625198478222,2.20527,2039.6,2039.5,2.20527]
[1625198478421,2.20527,2039.6,2037.8,1.0]
[1625198478522,2.20527,2039.6,2037.2,1.9941433]
[1625198478721,2.20527,2039.6,2037.7,0.16234094]
[1625198479270,2.20527,2039.6,2037.8,17.74]
[1625198479371,2.20527,2039.6,2038.2,1.15]
[1625198479672,2.20527,2039.6,2037.4,1.0]
[1625198479773,2.20527,2039.6,2036.7,2.99103861]
[1625198479873,2.20527,2039.6,2036.7,2.97943861]
[1625198479973,2.20527,2039.6,2036.7,1.99453861]
[1625198480080,5.0,2039.5,2036.8,0.16228515]
[1625198480273,2.20527,2037.7,2037.4,2.20527]
[1625198480374,5.27197,2037.7,2037.4,2.20527]
[1625198481075,5.27197,2037.7,2036.0,1.0]
[1625198481177,5.27197,2037.7,2035.9,15.7291]
[1625198481378,5.27197,2037.7,2036.0,0.16180773]
[1625198481526,5.27197,2037.7,2035.9,0.16181998]
[1625198482127,5.27197,2037.7,2036.4,1.15]
[1625198482231,2.20527,2037.1,2037.0,2.20527]
[1625198482629,7e-05,2037.1,2037.0,2.20527]
[1625198482729,15.7743,2038.6,2037.0,2.20527]
[1625198482830,15.7743,2038.6,2037.0,4.95067]
[1625198484231,2.20527,2038.1,2037.9,2.20527]
[1625198484980,2.20527,2038.1,2036.5,1.0]
[1625198485082,2.20527,2038.1,2035.8,77.7757]
[1625198485183,2.20527,2038.1,2035.8,78.7757]
[1625198485634,1.0,2038.0,2035.9,0.16152194]
[1625198485834,1.0,2038.0,2035.8,77.7757]
[1625198486286,2.20527,2037.4,2037.2,2.20527]
[1625198487040,4.67867,2037.4,2037.2,2.20527]
[1625198487591,4.67867,2037.4,2037.0,2.20527]
[1625198487789,10.67867,2037.4,2034.9,19.6547]
[1625198488142,5.67867,2037.4,2034.9,19.6547]
[1625198488241,2.20527,2036.6,2036.4,2.20527]
[1625198489460,2.20527,2036.6,2036.2,2.20527]
[1625198490264,2.20527,2036.3,2036.2,2.20527]
[1625198490363,5.83277,2036.3,2036.2,2.20527]
[1625198492120,2.20527,2036.3,2036.2,2.20527]
[1625198493974,2.20527,2036.6,2036.2,2.20527]
[1625198494272,4.41054,2036.6,2036.5,2.20527]
[1625198494674,1.0,2037.8,2036.5,2.20527]
[1625198494776,14.9416,2039.1,2036.5,2.20527]
[1625198495428,1.0,2039.0,2036.5,2.20527]
[1625198495632,6.0,2039.0,2036.5,2.20527]
[1625198496082,1.0,2039.0,2036.5,2.20527]
[1625198496278,2.20527,2037.4,2037.3,2.20527]
[1625198496379,2.20527,2037.4,2037.3,5.01347]
[1625198497381,2.20527,2037.4,2037.3,2.8082]
[1625198498382,4.41054,2037.4,2037.3,2.8082]
[1625198499181,4.41054,2037.4,2037.1,4.41054]
[1625198501237,1.0,2038.6,2037.1,4.41054]
[1625198501339,1.0,2038.6,2037.1,7.44154]
[1625198501441,15.1479,2039.7,2037.1,7.44154]
[1625198501787,15.1479,2039.7,2037.1,53.33904]
[1625198501944,20.1479,2039.7,2037.1,53.33904]
[1625198502089,20.1479,2039.7,2037.2,17.93]
[1625198502338,2.20527,2038.5,2038.4,2.20527]
[1625198503591,2.20527,2038.5,2038.2,2.20527]
[1625198503694,5.42997,2038.5,2036.8,16.3318]
[1625198503894,5.42997,2038.5,2036.8,15.3318]
[1625198503996,10.42997,2038.5,2036.8,15.3318]
[1625198504096,10.42997,2038.5,2035.8,1.0]
[1625198504196,1.0,2038.4,2035.8,1.0]
[1625198504309,1.0,2038.0,2035.0,5.71102398]
[1625198504397,2.20527,2037.2,2037.1,2.20527]
[1625198505048,4.96187,2037.2,2037.1,2.20527]
[1625198506402,7.16714,2037.2,2037.1,2.20527]
[1625198506955,7.16714,2037.2,2036.9,2.20527]
[1625198508055,12.16714,2037.2,2034.9,21.1749]
[1625198508162,14.15844,2037.2,2034.9,20.1749]
[1625198508257,13.16714,2037.2,2034.9,20.1749]
[1625198508358,2.20527,2036.5,2036.4,2.20527]
[1625198508507,5.71587,2036.5,2036.4,2.20527]
[1625198508611,5.71587,2036.5,2036.4,7e-05]
[1625198510378,7.92114,2036.5,2036.4,7e-05]
[1625198515838,7.92114,2036.5,2036.4,3.76867]
[1625198515942,4.41054,2036.5,2036.4,3.76867]
[1625198517145,4.41054,2036.5,2036.4,3.7686]
[1625198521628,4.41054,2036.5,2035.7,2.20527]
[1625198522481,2.20527,2035.8,2035.7,2.20527]
[1625198524139,2.20527,2035.8,2034.9,15.4089]
[1625198524391,2.20527,2035.8,2034.5,0.9836]
[1625198524492,2.20527,2035.3,2035.2,2.20527]
[1625198526345,50.43137,2035.3,2035.2,2.20527]
[1625198526496,52.63664,2035.3,2035.2,2.20527]
[1625198526845,52.63664,2035.3,2035.0,2.20527]
[1625198527100,55.71124,2035.3,2035.0,2.20527]
[1625198528149,55.71124,2035.3,2033.7,17.0449]
[1625198528249,55.71124,2035.3,2033.7,16.0449]
[1625198528451,55.71124,2035.3,2033.0,1.0]
[1625198528550,2.20527,2034.7,2034.6,2.20527]
[1625198529102,2.20527,2034.7,2034.4,2.20527]
[1625198530556,2.20527,2034.5,2034.4,2.20527]
[1625198536482,2.20527,2034.5,2034.0,2.20527]
[1625198536588,2.20527,2034.1,2034.0,2.20527]
[1625198538142,2.20527,2034.1,2032.6,16.2167]
[1625198538243,2.20527,2034.1,2032.6,15.2167]
[1625198538543,2.20527,2033.8,2033.6,2.20527]
[1625198541303,2.20527,2033.8,2033.6,3.17897]
[1625198541405,1.1,2036.5,2033.6,3.17897]
[1625198541504,1.0,2035.5,2033.6,6.89467]
[1625198541707,2.0674,2037.3,2033.6,6.89467]
[1625198542303,5.0,2036.1,2033.6,6.89467]
[1625198542404,2.0674,2037.3,2033.6,6.89467]
[1625198542554,1.0,2036.3,2033.6,6.89467]
[1625198542708,1.0,2036.3,2034.8,2.20527]
[1625198542709,2.20527,2035.0,2034.8,2.20527]
[1625198542805,2.20527,2035.0,2034.8,5.37017]
[1625198542954,1.0,2036.3,2034.8,5.37017]
[1625198543055,0.9674,2037.3,2034.8,5.37017]
[1625198544161,51.6563,2036.2,2034.8,5.37017]
[1625198544713,2.20527,2034.9,2034.8,5.37017]
[1625198546664,2.20527,2034.9,2034.8,3.1649]
[1625198547972,2.20527,2034.9,2034.6,2.20527]
[1625198548170,1.0,2036.1,2034.6,2.20527]
[1625198548272,1.0,2036.6,2034.6,4.80657]
[1625198548370,1.0,2036.4,2034.6,4.80657]
[1625198548694,14.7905,2037.9,2034.6,4.80657]
[1625198548695,2.20527,2035.7,2035.6,2.20527]
[1625198549244,2.20527,2035.7,2035.4,3.3503]
[1625198550696,4.41054,2035.7,2035.6,2.20527]
[1625198552349,4.41054,2035.7,2035.3,2.20527]
[1625198552700,2.20527,2035.4,2035.3,2.20527]
[1625198556164,15.1303,2036.5,2035.3,2.20527]
[1625198556263,15.1303,2036.5,2035.3,5.05777]
[1625198556664,2.20527,2036.2,2036.1,2.20527]
[1625198556767,2.20527,2036.2,2036.1,5.69117]
[1625198558473,15.8749,2037.8,2036.1,5.69117]
[1625198558575,1.0,2037.7,2036.1,5.69117]
[1625198558673,2.20527,2036.9,2036.8,2.20527]
[1625198558823,2.20527,2036.9,2036.8,4.98327]
[1625198558922,15.8749,2037.8,2036.8,4.98327]
[1625198560675,2.20527,2037.4,2037.2,2.20527]
[1625198561683,2.20527,2037.4,2036.8,2.20527]
[1625198562333,2.20527,2037.4,2035.5,1.9846]
[1625198562481,1.0,2037.3,2034.4,7.98419246]
[1625198562583,1.0,2037.3,2034.4,5.9888]
[1625198562683,2.20527,2036.6,2036.5,2.20527]
[1625198563234,2.20527,2036.6,2036.3,2.20527]
[1625198563587,4.56037,2036.6,2036.3,2.20527]
[1625198564689,6.76564,2036.6,2036.3,4.41054]
[1625198568298,2.3551,2036.6,2036.3,4.41054]
[1625198568396,1.0,2037.6,2036.3,4.41054]
[1625198568504,15.8749,2037.8,2036.3,7.82864]
[1625198568703,2.20527,2037.2,2037.1,2.20527]
[1625198568804,2.20527,2037.2,2037.1,4.48067]
[1625198569209,1.95927,2037.2,2037.1,4.48067]
[1625198569460,15.8778,2038.9,2037.1,4.48067]
[1625198569563,16.8778,2038.9,2037.1,4.48067]
[1625198570712,2.20527,2038.0,2037.9,2.20527]
[1625198570813,2.20527,2038.0,2037.9,5.47257]
[1625198571014,2.20527,2038.0,2037.9,3.2673]
[1625198571320,53.28737,2038.0,2037.9,3.2673]
[1625198571868,53.28737,2038.0,2036.5,1.0]
[1625198571971,53.28737,2038.0,2035.6,15.7175]
[1625198572071,53.28737,2038.0,2035.7,1.0]
[1625198572719,2.20527,2037.2,2037.1,2.20527]
[1625198573269,51.0821,2038.0,2037.1,2.20527]
[1625198573419,15.8778,2038.9,2037.1,2.20527]
[1625198574129,16.8778,2038.9,2037.1,2.20527]
[1625198574777,2.20527,2038.0,2037.9,2.20527]
[1625198574876,2.20527,2038.0,2036.4,15.8508]
[1625198574877,4.50147,2038.0,2036.4,15.8508]
[1625198576084,9.50147,2038.0,2035.7,1.0]
[1625198576184,1.0,2037.9,2035.5,2.99398002]
[1625198576635,1.0,2037.9,2035.5,0.9867]
[1625198576832,2.20527,2037.0,2036.9,2.20527]
[1625198577832,1.0,2038.0,2036.9,2.20527]
[1625198577933,16.019,2038.8,2036.9,5.83257]
[1625198578788,2.20527,2037.8,2037.7,2.20527]
[1625198579988,16.019,2038.8,2037.7,2.20527]
[1625198580087,16.019,2038.8,2037.7,5.27737]
[1625198580791,2.20527,2038.3,2038.2,2.20527]
[1625198584799,2.20527,2038.3,2038.2,4.41054]
[1625198587559,4.766,2039.5,2038.2,4.41054]
[1625198587660,4.766,2039.5,2038.2,6.86184]
[1625198588870,4.766,2039.5,2039.0,2.20527]
[1625198589017,4.766,2039.5,2039.0,4.85507]
[1625198589217,1.91941318,2040.3,2039.0,4.85507]
[1625198589421,8.28583985,2041.2,2039.0,4.85507]
[1625198589422,1.92315364,2040.8,2039.0,4.85507]
[1625198589821,16.90967513,2041.1,2039.0,4.85507]
[1625198589923,16.90967513,2041.1,2039.1,42.0683]
[1625198590172,16.90967513,2041.1,2039.5,1.15]
[1625198590274,14.9849,2041.1,2039.5,4.058]
[1625198590876,2.20527,2040.3,2040.2,2.20527]
[1625198592882,4.41054,2040.3,2040.2,2.20527]
[1625198595746,7.57634,2040.3,2040.2,2.20527]
[1625198596249,7.57634,2040.3,2038.5,0.9775]
[1625198596601,50.6818,2040.1,2038.0,5.9679]
[1625198596708,51.6818,2040.1,2038.0,5.0]
[1625198596903,2.20527,2039.8,2039.7,2.20527]
[1625198598906,4.41054,2039.8,2039.7,2.20527]
[1625198600207,1.0,2040.8,2039.7,2.20527]
[1625198600309,14.9849,2041.1,2039.7,4.67367]
[1625198601014,2.20527,2040.4,2039.7,4.67367]
[1625198602929,2.20527,2040.4,2040.0,2.20527]
[1625198603228,2.20527,2040.4,2040.0,5.69427]
[1625198604933,2.20527,2040.1,2040.0,5.69427]
[1625198605837,2.20527,2040.1,2040.0,3.489]
[1625198605934,4.53907,2040.1,2038.7,14.7736]
[1625198606234,4.53907,2040.1,2038.2,15.7563]
[1625198606335,58.298,2039.7,2037.6,1.0]
[1625198607085,2.20527,2039.4,2039.2,2.20527]
[1625198607286,2.20527,2039.4,2039.0,2.20527]
[1625198608641,4.766,2041.9,2039.0,2.20527]
[1625198608789,14.9849,2041.1,2039.0,4.84417]
[1625198609044,2.20527,2039.9,2039.8,2.20527]
[1625198609140,2.20527,2039.9,2039.8,5.41127]
[1625198609890,2.20527,2039.9,2039.8,3.206]
[1625198610996,4.41054,2039.9,2039.8,3.206]
[1625198614201,4.41054,2039.9,2039.6,2.20527]
[1625198615001,4.41054,2039.9,2039.8,2.20527]
[1625198615101,4.41054,2039.9,2039.8,4.54607]
[1625198615301,1.0,2041.0,2039.8,4.54607]
[1625198615455,14.9849,2041.1,2039.8,4.54607]
[1625198615901,14.9849,2041.1,2039.8,47.07337]
[1625198616955,1.0,2042.0,2039.8,47.07337]
[1625198617052,1.0,2041.8,2041.5,4.41054]
[1625198617155,2.20527,2041.9,2041.5,7.17394]
[1625198617653,2.20527,2041.9,2041.5,2.7634]
[1625198618024,2.20527,2041.9,2041.5,1.603998]
[1625198619061,2.20527,2041.6,2041.5,1.603998]